[Event "Campeonato de Aragón Individual Absoluto 2022"]
[Site "Zaragoza, Spain"]
[Date "2022.09.02"]
[Round "7.1"]
[White "Glavina, Pablo"]
[Black "Galstyan, David"]
[Result "1-0"]
[TimeControl "90 min + 30 sg"]
[WhiteElo "2394"]
[BlackElo "2035"]

1. Nf3 {[%clk 01:30:58]} {[%emt 00:00:01]} e6 {[%clk 01:30:47]} {[%emt
00:00:13]} 2. c4 {[%clk 01:31:23]} {[%emt 00:00:05]} d5 {[%clk 01:31:02]}
{[%emt 00:00:15]} 3. d4 {[%clk 01:31:48]} {[%emt 00:00:05]} Nf6 {[%clk
01:30:55]} {[%emt 00:00:37]} 4. g3 {[%clk 01:32:14]} {[%emt 00:00:04]} dxc4
{[%clk 01:31:12]} {[%emt 00:00:13]} 5. Qa4+ {[%clk 01:32:38]} {[%emt 00:00:05]}
Nc6 {[%clk 01:27:29]} {[%emt 00:04:13]} 6. Bg2 {[%clk 01:28:39]} {[%emt
00:04:29]} Bb4+ {[%clk 01:27:49]} {[%emt 00:00:11]} 7. Bd2 {[%clk 01:29:03]}
{[%emt 00:00:06]} Nd5 {[%clk 01:27:49]} {[%emt 00:00:30]} 8. Ne5 {[%clk
01:25:34]} {[%emt 00:03:58]} Bd7 {[%clk 01:04:46]} {[%emt 00:23:34]} 9. Nxd7
{[%clk 01:25:58]} {[%emt 00:00:06]} Qxd7 {[%clk 01:04:15]} {[%emt 00:01:01]} 10.
O-O {[%clk 01:24:56]} {[%emt 00:01:31]} Bxd2 {[%clk 00:57:28]} {[%emt
00:07:17]} 11. Nxd2 {[%clk 01:25:21]} {[%emt 00:00:05]} Nb6 {[%clk 00:57:26]}
{[%emt 00:00:32]} 12. Bxc6 {[%clk 01:25:27]} {[%emt 00:00:23]} Qxc6 {[%clk
00:57:23]} {[%emt 00:00:34]} 13. Qxc6+ {[%clk 01:25:50]} {[%emt 00:00:07]} bxc6
{[%clk 00:57:48]} {[%emt 00:00:05]} 14. a4 {[%clk 01:24:56]} {[%emt 00:01:24]}
a5 {[%clk 00:53:53]} {[%emt 00:04:25]} 15. Rfc1 {[%clk 01:25:21]} {[%emt
00:00:05]} O-O-O {[%clk 00:53:17]} {[%emt 00:01:06]} 16. Nxc4 {[%clk 01:21:15]}
{[%emt 00:04:37]} Rxd4 {[%clk 00:49:58]} {[%emt 00:03:48]} 17. Nxa5 {[%clk
01:21:00]} {[%emt 00:00:45]} Rxa4 {[%clk 00:50:10]} {[%emt 00:00:18]} 18. Rxa4
{[%clk 01:21:25]} {[%emt 00:00:06]} Nxa4 {[%clk 00:50:34]} {[%emt 00:00:05]} 19.
Nxc6 {[%clk 01:21:51]} {[%emt 00:00:03]} f6 {[%clk 00:42:33]} {[%emt 00:08:30]}
20. b3 {[%clk 01:15:26]} {[%emt 00:06:56]} Nb6 {[%clk 00:42:55]} {[%emt
00:00:09]} 21. Rd1 {[%clk 01:15:52]} {[%emt 00:00:04]} Re8 {[%clk 00:38:31]}
{[%emt 00:04:53]} 22. Kf1 {[%clk 01:16:14]} {[%emt 00:00:08]} e5 {[%clk
00:36:12]} {[%emt 00:02:49]} 23. Ke1 {[%clk 01:16:36]} {[%emt 00:00:08]} Kb7
{[%clk 00:34:02]} {[%emt 00:02:41]} 24. Rd8 {[%clk 01:16:55]} {[%emt 00:00:10]}
Rxd8 {[%clk 00:34:27]} {[%emt 00:00:05]} 25. Nxd8+ {[%clk 01:17:20]} {[%emt
00:00:05]} Kc8 {[%clk 00:34:37]} {[%emt 00:00:21]} 26. Ne6 {[%clk 01:17:30]}
{[%emt 00:00:19]} g5 {[%clk 00:33:27]} {[%emt 00:01:40]} 27. f4 {[%clk
01:14:49]} {[%emt 00:03:11]} gxf4 {[%clk 00:30:37]} {[%emt 00:03:20]} 28. gxf4
{[%clk 01:15:14]} {[%emt 00:00:06]} exf4 {[%clk 00:29:21]} {[%emt 00:01:46]} 29.
Nxf4 {[%clk 01:15:42]} {[%emt 00:00:02]} Kd7 {[%clk 00:28:54]} {[%emt
00:00:56]} 30. Kf2 {[%clk 01:16:07]} {[%emt 00:00:05]} Kd6 {[%clk 00:28:23]}
{[%emt 00:01:02]} 31. Kf3 {[%clk 01:16:19]} {[%emt 00:00:17]} Ke5 {[%clk
00:24:25]} {[%emt 00:04:28]} 32. e3 {[%clk 01:16:42]} {[%emt 00:00:07]} Kf5
{[%clk 00:19:10]} {[%emt 00:05:44]} 33. Nd3 {[%clk 01:16:56]} {[%emt 00:00:16]}
Nd7 {[%clk 00:19:06]} {[%emt 00:00:34]} 34. e4+ {[%clk 01:17:20]} {[%emt
00:00:06]} Kg5 {[%clk 00:19:26]} {[%emt 00:00:10]} 35. Kg3 {[%clk 01:17:07]}
{[%emt 00:00:43]} Ne5 {[%clk 00:17:47]} {[%emt 00:02:09]} 36. h4+ {[%clk
01:17:21]} {[%emt 00:00:15]} Kg6 {[%clk 00:17:58]} {[%emt 00:00:20]} 37. Nc5
{[%clk 01:17:36]} {[%emt 00:00:15]} h5 {[%clk 00:16:23]} {[%emt 00:02:06]} 38.
Ne6 {[%clk 01:17:12]} {[%emt 00:00:52]} c6 {[%clk 00:16:43]} {[%emt 00:00:11]}
39. Nf4+ {[%clk 01:17:02]} {[%emt 00:00:40]} Kh6 {[%clk 00:17:08]} {[%emt
00:00:05]} 40. b4 {[%clk 01:15:40]} {[%emt 00:01:52]} Nf7 {[%clk 00:15:23]}
{[%emt 00:02:15]} 41. Kf3 {[%clk 01:13:49]} {[%emt 00:02:21]} Ne5+ {[%clk
00:14:14]} {[%emt 00:01:39]} 42. Ke3 {[%clk 01:14:13]} {[%emt 00:00:05]} Nd7
{[%clk 00:07:40]} {[%emt 00:07:05]} 43. Kd4 {[%clk 01:14:32]} {[%emt 00:00:11]}
Nb8 {[%clk 00:05:53]} {[%emt 00:02:18]} 44. Kc5 {[%clk 01:13:41]} {[%emt
00:01:21]} Na6+ {[%clk 00:06:15]} {[%emt 00:00:09]} 45. Kc4 {[%clk 01:14:05]}
{[%emt 00:00:05]} Nc7 {[%clk 00:06:10]} {[%emt 00:00:36]} 46. Ne2 {[%clk
01:11:40]} {[%emt 00:02:55]} Kg6 {[%clk 00:03:54]} {[%emt 00:02:46]} 47. Nd4
{[%clk 01:11:59]} {[%emt 00:00:10]} Na6 {[%clk 00:03:19]} {[%emt 00:01:05]} 48.
Nxc6 {[%clk 01:12:23]} {[%emt 00:00:06]} Nxb4 {[%clk 00:03:20]} {[%emt
00:00:30]} 49. Kxb4 {[%clk 01:12:41]} {[%emt 00:00:11]} f5 {[%clk 00:02:34]}
{[%emt 00:01:16]} 50. Ne7+ {[%clk 01:13:07]} {[%emt 00:00:03]} Kf6 {[%clk
00:03:00]} {[%emt 00:00:04]} 51. Nxf5 {[%clk 01:13:32]} {[%emt 00:00:04]} Ke5
{[%clk 00:03:27]} {[%emt 00:00:04]} 52. Ng3 {[%clk 01:13:57]} {[%emt 00:00:06]}
Kf4 {[%clk 00:03:51]} {[%emt 00:00:06]} 53. Kc5 {[%clk 01:13:57]} {[%emt
00:00:30]} Kxg3 {[%clk 00:03:56]} {[%emt 00:00:26]} 54. e5 {[%clk 01:14:23]}
{[%emt 00:00:04]} Kxh4 {[%clk 00:04:22]} {[%emt 00:00:04]} 55. e6 {[%clk
01:14:49]} {[%emt 00:00:03]} Kg3 {[%clk 00:04:21]} {[%emt 00:00:31]} 56. e7
{[%clk 01:15:15]} {[%emt 00:00:04]} h4 {[%clk 00:04:45]} {[%emt 00:00:07]} 57.
e8=Q {[%clk 01:15:40]} {[%emt 00:00:05]} h3 {[%clk 00:05:09]} {[%emt 00:00:06]}
58. Qe4 {[%clk 01:15:48]} {[%emt 00:00:22]} Kh2 {[%clk 00:04:40]} {[%emt
00:00:59]} 59. Qg4 {[%clk 01:16:12]} {[%emt 00:00:05]} 1-0

[Event "Campeonato de Aragón Individual Absoluto 2022"]
[Site "Zaragoza, Spain"]
[Date "2022.09.02"]
[Round "7.2"]
[White "Vela Frago, Alberto"]
[Black "Garza Marco, Sergio"]
[Result "1/2-1/2"]
[TimeControl "90 min + 30 sg"]
[WhiteElo "2232"]
[BlackElo "2408"]

1. d4 {[%clk 01:30:55]} {[%emt 00:00:04]} d5 {[%clk 01:30:55]} {[%emt
00:00:06]} 2. c4 {[%clk 01:31:09]} {[%emt 00:00:16]} Nc6 {[%clk 01:31:20]}
{[%emt 00:00:05]} 3. Nf3 {[%clk 01:29:50]} {[%emt 00:01:49]} Bg4 {[%clk
01:31:42]} {[%emt 00:00:08]} 4. e3 {[%clk 01:28:50]} {[%emt 00:01:30]} e6
{[%clk 01:30:41]} {[%emt 00:01:31]} 5. Nc3 {[%clk 01:25:55]} {[%emt 00:03:25]}
Bb4 {[%clk 01:30:37]} {[%emt 00:00:34]} 6. cxd5 {[%clk 01:23:05]} {[%emt
00:03:20]} exd5 {[%clk 01:30:41]} {[%emt 00:00:26]} 7. Qb3 {[%clk 01:22:15]}
{[%emt 00:01:20]} Nge7 {[%clk 01:25:05]} {[%emt 00:06:06]} 8. a3 {[%clk
01:21:16]} {[%emt 00:01:30]} Bxc3+ {[%clk 01:18:33]} {[%emt 00:07:02]} 9. Qxc3
{[%clk 01:17:39]} {[%emt 00:04:07]} Bxf3 {[%clk 01:15:31]} {[%emt 00:03:32]} 10.
gxf3 {[%clk 01:18:07]} {[%emt 00:00:02]} O-O {[%clk 01:15:53]} {[%emt
00:00:08]} 11. Bd3 {[%clk 01:14:41]} {[%emt 00:03:56]} Qd7 {[%clk 01:14:56]}
{[%emt 00:01:27]} 12. h4 {[%clk 01:07:41]} {[%emt 00:07:30]} a5 {[%clk
01:06:35]} {[%emt 00:08:52]} 13. Qc2 {[%clk 01:06:42]} {[%emt 00:01:29]} Qe6
{[%clk 01:04:41]} {[%emt 00:02:23]} 14. Kf1 {[%clk 01:03:42]} {[%emt 00:03:30]}
f5 {[%clk 01:02:33]} {[%emt 00:02:38]} 15. f4 {[%clk 01:03:19]} {[%emt
00:00:53]} Rf6 {[%clk 00:59:22]} {[%emt 00:03:41]} 16. Bd2 {[%clk 01:01:51]}
{[%emt 00:01:58]} Rh6 {[%clk 00:56:41]} {[%emt 00:03:11]} 17. Qd1 {[%clk
01:00:14]} {[%emt 00:02:07]} Nc8 {[%clk 00:49:15]} {[%emt 00:07:56]} 18. Rh3
{[%clk 00:58:18]} {[%emt 00:02:25]} Nd6 {[%clk 00:48:45]} {[%emt 00:01:01]} 19.
b3 {[%clk 00:55:50]} {[%emt 00:02:58]} Ne7 {[%clk 00:45:09]} {[%emt 00:04:05]}
20. Rc1 {[%clk 00:52:46]} {[%emt 00:03:33]} c6 {[%clk 00:44:54]} {[%emt
00:00:45]} 21. Qe2 {[%clk 00:48:45]} {[%emt 00:04:30]} Ng6 {[%clk 00:43:08]}
{[%emt 00:02:17]} 22. h5 {[%clk 00:47:17]} {[%emt 00:01:58]} Nf8 {[%clk
00:43:32]} {[%emt 00:00:06]} 23. b4 {[%clk 00:41:44]} {[%emt 00:06:03]} axb4
{[%clk 00:42:30]} {[%emt 00:01:33]} 24. Bxb4 {[%clk 00:41:39]} {[%emt
00:00:34]} Ne4 {[%clk 00:41:19]} {[%emt 00:01:41]} 25. Bxf8 {[%clk 00:26:58]}
{[%emt 00:15:11]} Rxf8 {[%clk 00:36:22]} {[%emt 00:05:27]} 26. a4 {[%clk
00:25:44]} {[%emt 00:01:44]} Ra8 {[%clk 00:34:16]} {[%emt 00:02:36]} 27. Qb2
{[%clk 00:25:09]} {[%emt 00:01:05]} Qd7 {[%clk 00:28:04]} {[%emt 00:06:41]} 28.
Qb4 {[%clk 00:23:45]} {[%emt 00:01:54]} Nd6 {[%clk 00:24:33]} {[%emt 00:04:02]}
29. a5 {[%clk 00:20:19]} {[%emt 00:03:57]} Rf6 {[%clk 00:15:44]} {[%emt
00:09:17]} 30. Qb6 {[%clk 00:17:41]} {[%emt 00:03:08]} Nc8 {[%clk 00:15:34]}
{[%emt 00:00:40]} 31. Qb4 {[%clk 00:16:46]} {[%emt 00:01:25]} Qe7 {[%clk
00:14:03]} {[%emt 00:02:01]} 32. Rc5 {[%clk 00:15:11]} {[%emt 00:02:05]} Qd7
{[%clk 00:13:41]} {[%emt 00:00:52]} 33. Qc3 {[%clk 00:12:45]} {[%emt 00:02:56]}
Nd6 {[%clk 00:13:55]} {[%emt 00:00:16]} 34. Rg3 {[%clk 00:12:32]} {[%emt
00:00:43]} Ne4 {[%clk 00:13:52]} {[%emt 00:00:33]} 35. Bxe4 {[%clk 00:12:57]}
{[%emt 00:00:05]} fxe4 {[%clk 00:14:19]} {[%emt 00:00:03]} 36. Qb2 {[%clk
00:12:12]} {[%emt 00:01:16]} h6 {[%clk 00:12:55]} {[%emt 00:01:53]} 37. Kg2
{[%clk 00:09:50]} {[%emt 00:02:53]} Rff8 {[%clk 00:10:33]} {[%emt 00:02:52]} 38.
Qb6 {[%clk 00:09:39]} {[%emt 00:00:41]} Ra6 {[%clk 00:10:38]} {[%emt 00:00:24]}
39. Qb4 {[%clk 00:10:08]} {[%emt 00:00:01]} Rfa8 {[%clk 00:10:45]} {[%emt
00:00:23]} 40. Qc3 {[%clk 00:08:08]} {[%emt 00:02:30]} Kh7 {[%clk 00:10:58]}
{[%emt 00:00:17]} 41. Kf1 {[%clk 00:06:33]} {[%emt 00:02:05]} Qf5 {[%clk
00:11:07]} {[%emt 00:00:19]} 42. Qb4 {[%clk 00:06:32]} {[%emt 00:00:32]} R8a7
{[%clk 00:11:07]} {[%emt 00:00:30]} 43. Rc1 {[%clk 00:06:33]} {[%emt 00:00:29]}
Rxa5 {[%clk 00:10:56]} {[%emt 00:00:41]} 44. Qe7 {[%clk 00:06:18]} {[%emt
00:00:44]} Qf6 {[%clk 00:09:24]} {[%emt 00:02:02]} 45. Qxf6 {[%clk 00:06:26]}
{[%emt 00:00:22]} gxf6 {[%clk 00:09:53]} {[%emt 00:00:01]} 46. Rg6 {[%clk
00:06:48]} {[%emt 00:00:08]} Ra1 {[%clk 00:10:08]} {[%emt 00:00:16]} 47. Rxa1
{[%clk 00:07:10]} {[%emt 00:00:07]} Rxa1+ {[%clk 00:10:37]} {[%emt 00:00:01]}
48. Kg2 {[%clk 00:06:11]} {[%emt 00:01:29]} Ra8 {[%clk 00:09:18]} {[%emt
00:01:49]} 49. Rxf6 {[%clk 00:06:36]} {[%emt 00:00:06]} Rg8+ {[%clk 00:08:56]}
{[%emt 00:00:52]} 50. Kf1 {[%clk 00:06:19]} {[%emt 00:00:47]} Rg7 {[%clk
00:08:25]} {[%emt 00:01:01]} 51. Kg2 {[%emt 00:19:41]} 1/2-1/2

[Event "Campeonato de Aragón Individual Absoluto 2022"]
[Site "Zaragoza, Spain"]
[Date "2022.09.02"]
[Round "7.3"]
[White "Quintin Navarro, Alberto"]
[Black "Ereza Vizcarra, Fernando"]
[Result "1/2-1/2"]
[TimeControl "90 min + 30 sg"]
[WhiteElo "2372"]
[BlackElo "2132"]

1. c4 {[%clk 01:30:57]} {[%emt 00:00:02]} c6 {[%clk 01:28:45]} {[%emt
00:02:15]} 2. d4 {[%clk 01:30:55]} {[%emt 00:00:32]} d5 {[%clk 01:29:12]}
{[%emt 00:00:03]} 3. cxd5 {[%clk 01:30:55]} {[%emt 00:00:31]} cxd5 {[%clk
01:29:37]} {[%emt 00:00:04]} 4. Bf4 {[%clk 01:31:19]} {[%emt 00:00:06]} Nc6
{[%clk 01:30:04]} {[%emt 00:00:04]} 5. e3 {[%clk 01:31:44]} {[%emt 00:00:04]}
Nf6 {[%clk 01:30:31]} {[%emt 00:00:03]} 6. Nc3 {[%clk 01:32:10]} {[%emt
00:00:04]} a6 {[%clk 01:30:49]} {[%emt 00:00:12]} 7. Bd3 {[%clk 01:30:57]}
{[%emt 00:01:42]} Bg4 {[%clk 01:31:01]} {[%emt 00:00:16]} 8. Nge2 {[%clk
01:31:22]} {[%emt 00:00:06]} e6 {[%clk 01:31:28]} {[%emt 00:00:03]} 9. O-O
{[%clk 01:31:40]} {[%emt 00:00:11]} Bd6 {[%clk 01:31:55]} {[%emt 00:00:04]} 10.
Qd2 {[%clk 01:30:32]} {[%emt 00:01:38]} Bxe2 {[%clk 01:31:57]} {[%emt
00:00:27]} 11. Nxe2 {[%clk 01:30:54]} {[%emt 00:00:08]} Bxf4 {[%clk 01:32:25]}
{[%emt 00:00:02]} 12. Nxf4 {[%clk 01:31:16]} {[%emt 00:00:07]} O-O {[%clk
01:32:47]} {[%emt 00:00:08]} 13. Rac1 {[%clk 01:31:15]} {[%emt 00:00:31]} Ne8
{[%clk 01:32:37]} {[%emt 00:00:40]} 14. Rc2 {[%clk 01:30:55]} {[%emt 00:00:50]}
Nd6 {[%clk 01:32:17]} {[%emt 00:00:50]} 15. Rfc1 {[%clk 01:22:27]} {[%emt
00:08:58]} Qa5 {[%clk 01:28:40]} {[%emt 00:04:07]} 16. Qxa5 {[%clk 01:21:49]}
{[%emt 00:01:09]} Nxa5 {[%clk 01:29:07]} {[%emt 00:00:03]} 17. Be2 {[%clk
01:21:42]} {[%emt 00:00:36]} Rac8 {[%clk 01:27:31]} {[%emt 00:02:05]} 18. Rc5
{[%clk 01:21:22]} {[%emt 00:00:51]} Nac4 {[%clk 01:22:18]} {[%emt 00:05:43]} 19.
b3 {[%clk 01:19:55]} {[%emt 00:01:57]} Nb6 {[%clk 01:21:25]} {[%emt 00:01:23]}
20. Nd3 {[%clk 01:18:47]} {[%emt 00:01:38]} Nd7 {[%clk 01:16:47]} {[%emt
00:05:08]} 21. Rc7 {[%clk 01:18:41]} {[%emt 00:00:36]} Nb8 {[%clk 01:16:10]}
{[%emt 00:01:08]} 22. Bg4 {[%clk 01:08:05]} {[%emt 00:11:05]} Rxc7 {[%clk
01:11:00]} {[%emt 00:05:40]} 23. Rxc7 {[%clk 01:08:28]} {[%emt 00:00:07]} Rc8
{[%clk 01:11:29]} 24. Rxc8+ {[%clk 01:08:40]} {[%emt 00:00:17]} Nxc8 {[%clk
01:11:56]} {[%emt 00:00:04]} 25. Nc5 {[%clk 01:08:48]} {[%emt 00:00:22]} Nd6
{[%clk 01:12:24]} {[%emt 00:00:01]} 26. Nxe6 {[%clk 01:09:02]} {[%emt
00:00:16]} fxe6 {[%clk 01:12:52]} {[%emt 00:00:03]} 27. Bxe6+ {[%clk 01:09:26]}
{[%emt 00:00:06]} Kf8 {[%clk 01:13:21]} 28. Bxd5 {[%clk 01:09:37]} {[%emt
00:00:20]} Nc6 {[%clk 01:13:48]} {[%emt 00:00:04]} 29. a3 {[%clk 01:09:51]}
{[%emt 00:00:16]} Nb5 {[%clk 01:11:43]} {[%emt 00:02:35]} 30. a4 {[%clk
01:09:56]} {[%emt 00:00:25]} Nc3 {[%clk 01:12:10]} {[%emt 00:00:03]} 31. Be6
{[%clk 01:09:31]} {[%emt 00:00:55]} Ke7 {[%clk 01:08:59]} {[%emt 00:03:40]} 32.
Bg8 {[%clk 01:09:52]} {[%emt 00:00:09]} h6 {[%clk 01:08:16]} {[%emt 00:01:14]}
33. Kf1 {[%clk 01:09:40]} {[%emt 00:00:42]} Na5 {[%clk 01:04:55]} {[%emt
00:03:51]} 34. f4 {[%clk 01:08:47]} {[%emt 00:01:23]} Kf8 {[%clk 01:04:44]}
{[%emt 00:00:41]} 35. Be6 {[%clk 01:09:11]} {[%emt 00:00:05]} Ke7 {[%clk
01:05:11]} {[%emt 00:00:03]} 36. f5 {[%clk 01:09:16]} {[%emt 00:00:25]} Kd6
{[%clk 01:01:03]} {[%emt 00:04:39]} 37. Kf2 {[%clk 00:59:17]} {[%emt 00:10:29]}
Ne4+ {[%clk 00:45:41]} {[%emt 00:15:51]} 38. Ke2 {[%clk 00:59:34]} {[%emt
00:00:14]} Nc6 {[%clk 00:45:55]} {[%emt 00:00:16]} 39. g4 {[%clk 00:58:02]}
{[%emt 00:02:01]} b5 {[%clk 00:44:57]} {[%emt 00:01:28]} 40. axb5 {[%clk
00:58:13]} {[%emt 00:00:20]} axb5 {[%clk 00:45:23]} {[%emt 00:00:04]} 41. Bf7
{[%clk 00:56:35]} {[%emt 00:02:07]} Ke7 {[%clk 00:43:28]} {[%emt 00:02:25]} 42.
Bg6 {[%clk 00:42:17]} {[%emt 00:14:49]} Na5 {[%clk 00:37:37]} {[%emt 00:06:21]}
43. Kf3 {[%clk 00:42:39]} {[%emt 00:00:07]} Nd2+ {[%clk 00:37:40]} {[%emt
00:00:27]} 44. Kf4 {[%clk 00:43:04]} {[%emt 00:00:05]} Naxb3 {[%clk 00:37:53]}
{[%emt 00:00:17]} 45. h4 {[%clk 00:43:22]} {[%emt 00:00:12]} Nc4 {[%clk
00:37:25]} {[%emt 00:00:59]} 46. g5 {[%clk 00:43:12]} {[%emt 00:00:39]} hxg5+
{[%clk 00:37:12]} {[%emt 00:00:42]} 47. hxg5 {[%clk 00:43:38]} {[%emt
00:00:05]} b4 {[%clk 00:36:43]} {[%emt 00:01:00]} 48. Bh7 {[%clk 00:43:39]}
{[%emt 00:00:28]} Kf7 {[%clk 00:34:57]} {[%emt 00:02:15]} 49. d5 {[%clk
00:41:39]} {[%emt 00:02:31]} Nc5 {[%clk 00:35:08]} {[%emt 00:00:19]} 50. d6
{[%clk 00:37:58]} {[%emt 00:04:10]} Nxd6 {[%clk 00:33:08]} {[%emt 00:02:30]} 51.
Bg6+ {[%clk 00:38:21]} {[%emt 00:00:07]} Ke7 {[%clk 00:33:31]} {[%emt
00:00:07]} 52. Ke5 {[%clk 00:38:23]} {[%emt 00:00:28]} Nce4 {[%clk 00:28:35]}
{[%emt 00:05:26]} 53. f6+ {[%clk 00:38:07]} {[%emt 00:00:46]} Nxf6 {[%clk
00:28:51]} {[%emt 00:00:14]} 54. gxf6+ {[%clk 00:38:24]} {[%emt 00:00:12]}
gxf6+ {[%clk 00:29:11]} {[%emt 00:00:10]} 55. Kd4 {[%clk 00:38:48]} {[%emt
00:00:06]} f5 {[%clk 00:29:37]} {[%emt 00:00:04]} 56. Bxf5 {[%clk 00:39:06]}
{[%emt 00:00:12]} 1/2-1/2

[Event "Campeonato de Aragón Individual Absoluto 2022"]
[Site "Zaragoza, Spain"]
[Date "2022.09.02"]
[Round "7.4"]
[White "Perez Tomas, Juan Manuel"]
[Black "Lorente Melcon, Maximo"]
[Result "1-0"]
[TimeControl "90 min + 30 sg"]
[WhiteElo "1664"]
[BlackElo "1851"]

1. e4 {[%clk 01:30:58]} {[%emt 00:00:01]} c5 {[%clk 01:30:59]} {[%emt
00:00:01]} 2. Nf3 {[%clk 01:31:21]} {[%emt 00:00:07]} e6 {[%clk 01:31:28]}
{[%emt 00:00:01]} 3. g3 {[%clk 01:31:31]} {[%emt 00:00:20]} Nc6 {[%clk
01:29:45]} {[%emt 00:02:14]} 4. Bg2 {[%clk 01:32:00]} {[%emt 00:00:01]} d6
{[%clk 01:28:34]} {[%emt 00:01:41]} 5. d4 {[%clk 01:28:22]} {[%emt 00:04:08]}
cxd4 {[%clk 01:28:46]} {[%emt 00:00:18]} 6. Nxd4 {[%clk 01:28:50]} {[%emt
00:00:02]} Be7 {[%clk 01:25:29]} {[%emt 00:03:46]} 7. c4 {[%clk 01:24:58]}
{[%emt 00:04:24]} a6 {[%clk 01:18:34]} {[%emt 00:07:25]} 8. Be3 {[%clk
01:15:29]} {[%emt 00:09:59]} Bd7 {[%clk 01:18:10]} {[%emt 00:00:54]} 9. Nc3
{[%clk 01:10:01]} {[%emt 00:05:58]} Nf6 {[%clk 01:17:54]} {[%emt 00:00:46]} 10.
O-O {[%clk 01:10:07]} {[%emt 00:00:24]} O-O {[%clk 01:17:44]} {[%emt 00:00:39]}
11. Rc1 {[%clk 01:09:27]} {[%emt 00:01:10]} Rc8 {[%clk 01:15:18]} {[%emt
00:02:56]} 12. b3 {[%clk 01:05:31]} {[%emt 00:04:26]} Nxd4 {[%clk 00:55:30]}
{[%emt 00:20:18]} 13. Bxd4 {[%clk 01:05:21]} {[%emt 00:00:40]} Bc6 {[%clk
00:54:38]} {[%emt 00:01:21]} 14. f4 {[%clk 00:59:04]} {[%emt 00:06:48]} Qa5
{[%clk 00:45:43]} {[%emt 00:09:25]} 15. Qe2 {[%clk 00:50:53]} {[%emt 00:08:41]}
Rfd8 {[%clk 00:41:21]} {[%emt 00:04:51]} 16. f5 {[%clk 00:47:20]} {[%emt
00:04:03]} e5 {[%clk 00:35:02]} {[%emt 00:06:49]} 17. Be3 {[%clk 00:46:33]}
{[%emt 00:01:17]} b5 {[%clk 00:27:44]} {[%emt 00:07:48]} 18. Nd5 {[%clk
00:45:12]} {[%emt 00:01:51]} Bxd5 {[%clk 00:19:06]} {[%emt 00:09:08]} 19. cxd5
{[%clk 00:45:40]} {[%emt 00:00:02]} Nd7 {[%clk 00:17:03]} {[%emt 00:02:32]} 20.
g4 {[%clk 00:36:09]} {[%emt 00:10:01]} h6 {[%clk 00:14:55]} {[%emt 00:02:38]}
21. Qf2 {[%clk 00:26:53]} {[%emt 00:09:47]} Bg5 {[%clk 00:14:03]} {[%emt
00:01:22]} 22. Bxg5 {[%clk 00:26:10]} {[%emt 00:01:13]} hxg5 {[%clk 00:14:31]}
{[%emt 00:00:01]} 23. h4 {[%clk 00:26:39]} {[%emt 00:00:01]} gxh4 {[%clk
00:06:53]} {[%emt 00:08:08]} 24. Qxh4 {[%clk 00:26:21]} {[%emt 00:00:48]} Qd2
{[%clk 00:05:21]} {[%emt 00:02:02]} 25. Rc6 {[%clk 00:24:57]} {[%emt 00:01:54]}
Qe3+ {[%clk 00:02:18]} {[%emt 00:03:33]} 26. Kh2 {[%clk 00:19:16]} {[%emt
00:06:11]} Nc5 {[%clk 00:01:44]} {[%emt 00:01:04]} 27. g5 {[%clk 00:18:39]}
{[%emt 00:01:06]} f6 {[%clk 00:00:48]} {[%emt 00:01:27]} 28. g6 {[%clk
00:18:26]} {[%emt 00:00:44]} Qh6 {[%clk 00:00:56]} {[%emt 00:00:21]} 29. Qxh6
{[%clk 00:18:07]} {[%emt 00:00:49]} gxh6 {[%clk 00:01:26]} 30. Rd1 {[%clk
00:18:13]} {[%emt 00:00:23]} Kf8 {[%clk 00:00:57]} {[%emt 00:00:59]} 31. Kh3
{[%clk 00:17:50]} {[%emt 00:00:53]} Ke7 {[%clk 00:00:43]} {[%emt 00:00:44]} 32.
b4 {[%clk 00:16:57]} {[%emt 00:01:24]} Rxc6 {[%clk 00:00:48]} {[%emt 00:00:25]}
33. dxc6 {[%clk 00:17:26]} {[%emt 00:00:02]} Na4 {[%clk 00:01:08]} {[%emt
00:00:10]} 34. Rc1 {[%clk 00:17:50]} {[%emt 00:00:05]} Nb6 {[%clk 00:01:05]}
{[%emt 00:00:34]} 35. Bf1 {[%clk 00:18:18]} {[%emt 00:00:01]} d5 {[%clk
00:00:44]} {[%emt 00:00:51]} 36. c7 {[%clk 00:17:48]} {[%emt 00:01:01]} Rc8
{[%clk 00:01:05]} {[%emt 00:00:09]} 37. Rc6 {[%clk 00:18:16]} {[%emt 00:00:01]}
Na8 {[%clk 00:00:33]} {[%emt 00:01:02]} 38. exd5 {[%clk 00:18:22]} {[%emt
00:00:24]} Kd7 {[%clk 00:00:36]} {[%emt 00:00:27]} 39. Rxa6 {[%clk 00:18:00]}
{[%emt 00:00:52]} Nxc7 {[%clk 00:00:47]} {[%emt 00:00:19]} 40. Rxf6 {[%clk
00:18:23]} {[%emt 00:00:06]} Nxd5 {[%clk 00:00:52]} {[%emt 00:00:25]} 41. Bxb5+
{[%clk 00:18:52]} {[%emt 00:00:02]} Ke7 {[%clk 00:00:40]} {[%emt 00:00:41]} 42.
Rf7+ {[%clk 00:19:15]} {[%emt 00:00:08]} 1-0